fUSD/lending_fUSD_20250206
["ID","MTS","AMOUNT","RATE_DAILY","PERIOD"]
[351987988,1738869053776,-947.99,0.00016575,2]
[351987989,1738869053786,-579.21,0.00016575,2]
[351987990,1738869053796,-628.67,0.00016575,2]
[351987991,1738869053806,-500.0,0.00016575,2]
[351987992,1738869053815,-683.61,0.00016575,2]
[351987993,1738869053825,-1019.47,0.00016575,2]
[351987994,1738869053838,-1070.13,0.00016575,2]
[351987995,1738869053848,-500.0,0.00016575,2]
[351987996,1738869053858,-500.0,0.00016575,2]
[351987997,1738869053868,-500.0,0.00016575,2]
[351987998,1738869053878,-1472.07,0.00016575,2]
[351987999,1738869053888,-1119.85,0.00016575,2]
[351988000,1738869053898,-829.24,0.00016575,2]
[351988001,1738869053908,-1237.8,0.00016575,2]
[351988002,1738869053918,-500.0,0.00016575,2]
[351988003,1738869053928,-768.55,0.00016575,2]
[351988004,1738869053938,-500.0,0.00016575,2]
[351988005,1738869053948,-823.29,0.00016575,2]
[351988006,1738869053957,-3432.47,0.00016575,2]
[351988007,1738869053967,-500.0,0.00016575,2]
[351988008,1738869053977,-500.0,0.00016575,2]
[351988009,1738869053988,-1124.75,0.00016575,2]
[351988010,1738869053998,-1001.46,0.00016575,2]
[351988011,1738869054008,-500.0,0.00016575,2]
[351988012,1738869054019,-500.0,0.00016575,2]
[351988013,1738869054029,-592.42,0.00016575,2]
[351988014,1738869054039,-1057.54,0.00016575,2]
[351988015,1738869054049,-500.0,0.00016575,2]
[351988016,1738869054059,-781.47,0.00016575,2]
[351988017,1738869054070,-500.0,0.00016575,2]
[351988018,1738869054080,-500.0,0.00016575,2]
[351988019,1738869054094,-1590.71,0.00016575,2]
[351988020,1738869054105,-571.38,0.00016575,2]
[351988021,1738869054116,-500.0,0.00016575,2]
[351988022,1738869054127,-547.46,0.00016575,2]
[351988023,1738869054324,-611.88,0.00016575,2]
[351988024,1738869054339,-500.0,0.00016575,2]
[351988025,1738869054349,-500.0,0.00016575,2]
[351988026,1738869054359,-500.0,0.00016575,2]
[351988027,1738869054368,-917.36,0.00016575,2]
[351988028,1738869054378,-2012.37,0.00016575,2]
[351988029,1738869054388,-581.15,0.00016575,2]
[351988030,1738869054398,-500.0,0.00016575,2]
[351988031,1738869054407,-1680.18,0.00016575,2]
[351988032,1738869054417,-1207.36,0.00016575,2]
[351988033,1738869054427,-581.67,0.00016575,2]
[351988034,1738869054437,-1132.12,0.00016575,2]
[351988035,1738869054446,-500.0,0.00016575,2]
[351988036,1738869054456,-500.0,0.00016575,2]
[351988037,1738869054465,-1498.04,0.00016575,2]
[351988038,1738869054475,-500.0,0.00016575,2]
[351988039,1738869054485,-500.0,0.00016575,2]
[351988040,1738869054496,-500.0,0.00016575,2]
[351988041,1738869054506,-1513.16,0.00016575,2]
[351988042,1738869054515,-925.3,0.00016575,2]
[351988043,1738869054525,-500.0,0.00016575,2]
[351988044,1738869054535,-2321.43,0.00016575,2]
[351988045,1738869054544,-530.46,0.00016575,2]
[351988046,1738869054554,-751.5,0.00016575,2]
[351988047,1738869054564,-819.37,0.00016575,2]
[351988048,1738869054575,-1131.41,0.00016575,2]
[351988049,1738869054584,-516.32,0.00016575,2]
[351988050,1738869054597,-500.0,0.00016575,2]
[351988051,1738869054606,-500.0,0.00016575,2]
[351988052,1738869054615,-500.0,0.00016575,2]
[351988053,1738869054625,-500.0,0.00016575,2]
[351988054,1738869054635,-1000.0,0.00016575,2]
[351988055,1738869054644,-887.03,0.00016575,2]
[351988056,1738869054654,-500.0,0.00016575,2]
[351988057,1738869054664,-1716.92,0.00016575,2]
[351988058,1738869054673,-500.0,0.00016575,2]
[351988059,1738869054683,-750.35,0.00016575,2]
[351988060,1738869054692,-500.0,0.00016575,2]
[351988061,1738869054702,-500.0,0.00016575,2]
[351988062,1738869054712,-985.16,0.00016575,2]
[351988063,1738869054722,-500.0,0.00016575,2]
[351988064,1738869054731,-1146.94,0.00016575,2]
[351988065,1738869054741,-500.0,0.00016575,2]
[351988066,1738869054751,-500.0,0.00016575,2]
[351988067,1738869054760,-1926.78,0.00016575,2]
[351988068,1738869054769,-500.0,0.00016575,2]
[351988069,1738869054779,-1123.01,0.00016575,2]
[351988070,1738869054788,-500.0,0.00016575,2]
[351988071,1738869054797,-500.0,0.00016575,2]
[351988072,1738869054806,-245.02671322,0.00016575,2]
[351988073,1738869054815,-500.0,0.00016575,2]
[351988074,1738869054825,-849.89,0.00016575,2]
[351988075,1738869054834,-774.75,0.00016575,2]
[351988076,1738869054846,-910.06,0.00016575,2]
[351988077,1738869054855,-750.33,0.00016575,2]
[351988078,1738869054864,-608.94,0.00016575,2]
[351988079,1738869054873,-1462.54,0.00016575,2]
[351988080,1738869054883,-543.86,0.00016575,2]
[351988081,1738869054892,-561.62,0.00016575,2]
[351988082,1738869054902,-527.28,0.00016575,2]
[351988083,1738869054911,-500.0,0.00016575,2]
[351988084,1738869054920,-500.0,0.00016575,2]
[351988085,1738869054930,-726.86,0.00016575,2]
[351988086,1738869054939,-500.0,0.00016575,2]
[351988087,1738869054949,-871.24,0.00016575,2]
[351988088,1738869054959,-839.79,0.00016575,2]
[351988089,1738869054968,-639.6,0.00016575,2]
[351988090,1738869054978,-679.77,0.00016575,2]
[351988091,1738869054988,-500.0,0.00016575,2]
[351988092,1738869054997,-774.5,0.00016575,2]
[351988093,1738869055007,-500.0,0.00016575,2]
[351988094,1738869055016,-500.0,0.00016575,2]
[351988095,1738869055025,-2032.98,0.00016575,2]
[351988096,1738869055035,-624.36718442,0.0001659,2]
[351988097,1738869055044,-346.77255844,0.00016612,2]
[351988098,1738869055053,-1843.6557065,0.00016612,2]
[351988099,1738869055063,-1000.0,0.00016654,2]
[351988100,1738869055072,-601.57,0.00016658,30]
[351988101,1738869055081,-21199.62631663,0.00016699,2]
[351988102,1738869055093,-500.0,0.00016705,2]
[351988103,1738869055102,-500.0,0.00016711,2]
[351988104,1738869055111,-500.0,0.00016711,2]
[351988105,1738869055121,-500.0,0.00016711,2]
[351988106,1738869055130,-500.0,0.00016711,2]
[351988107,1738869055139,-887.55,0.00016711,2]
[351988108,1738869055148,-170.418657,0.00016712,2]
[351988109,1738869055158,-500.0,0.00016712,2]
[351988110,1738869055167,-200.145142,0.00016712,2]
[351988111,1738869055176,-500.0,0.00016712,2]
[351988112,1738869055186,-500.0,0.00016712,2]
[351988113,1738869055195,-500.0,0.00016712,2]
[351988114,1738869055205,-500.0,0.00016712,2]
[351988115,1738869055215,-500.0,0.00016712,2]
[351988116,1738869055225,-500.0,0.00016712,2]
[351988117,1738869055235,-500.0,0.00016712,2]
[351988118,1738869055246,-500.0,0.00016712,2]
[351988119,1738869055256,-500.0,0.00016712,2]
[351988120,1738869055267,-658.15,0.00016712,2]
[351988121,1738869055277,-500.0,0.00016712,2]
[351988122,1738869055287,-500.0,0.00016712,2]
[351988123,1738869055297,-500.0,0.00016712,2]
[351988124,1738869055307,-500.0,0.00016712,2]
[351988125,1738869055318,-500.0,0.00016712,2]
[351988126,1738869055327,-803.61,0.00016712,2]
[351988127,1738869055342,-500.0,0.00016712,2]
[351988128,1738869055352,-500.0,0.00016712,2]
[351988129,1738869055362,-544.03,0.00016712,2]
[351988130,1738869055373,-500.0,0.00016712,2]
[351988131,1738869055383,-500.0,0.00016712,2]
[351988132,1738869055393,-500.0,0.00016712,2]
[351988133,1738869055404,-500.0,0.00016712,2]
[351988134,1738869055414,-500.0,0.00016712,2]
[351988135,1738869055425,-213.75424223,0.00016712,2]
[351988136,1738869055435,-500.0,0.00016712,2]
[351988137,1738869055446,-244.51526439,0.00016712,2]
[351988138,1738869055456,-546.29,0.00016712,2]
[351988139,1738869055466,-500.0,0.00016712,2]
[351988140,1738869055476,-500.0,0.00016712,2]
[351988141,1738869055490,-500.0,0.00016712,2]
[351988142,1738869055500,-341.16414309,0.00016712,2]
[351988143,1738869055510,-500.0,0.00016712,2]
[351988144,1738869055520,-500.0,0.00016712,2]
[351988145,1738869055531,-500.0,0.00016712,2]
[351988146,1738869055540,-705.77,0.00016712,2]
[351988147,1738869055550,-500.0,0.00016712,2]
[351988148,1738869055560,-500.0,0.00016712,2]
[351988149,1738869055571,-500.0,0.00016712,2]
[351988150,1738869055581,-500.0,0.00016712,2]
[351988151,1738869055595,-500.0,0.00016712,2]
[351988152,1738869055605,-500.0,0.00016712,2]
[351988153,1738869055615,-572.78,0.00016712,2]
[351988154,1738869055625,-500.0,0.00016712,2]
[351988155,1738869055635,-500.0,0.00016712,2]
[351988156,1738869055645,-500.0,0.00016712,2]
[351988157,1738869055655,-500.0,0.00016712,2]
[351988158,1738869055665,-500.0,0.00016712,2]
[351988159,1738869055674,-500.0,0.00016712,2]
[351988160,1738869055684,-500.0,0.00016712,2]
[351988161,1738869055694,-625.43,0.00016712,2]
[351988162,1738869055703,-500.0,0.00016712,2]
[351988163,1738869055712,-500.0,0.00016712,2]
[351988164,1738869055722,-500.0,0.00016712,2]
[351988165,1738869055731,-500.0,0.00016712,2]
[351988166,1738869055741,-500.0,0.00016712,2]
[351988167,1738869055751,-595.98,0.00016712,2]
[351988168,1738869055760,-500.0,0.00016712,2]
[351988169,1738869055770,-500.0,0.00016712,2]
[351988170,1738869055780,-500.0,0.00016712,2]
[351988171,1738869055790,-500.0,0.00016712,2]
[351988172,1738869055799,-514.04,0.00016712,2]
[351988173,1738869055809,-500.0,0.00016712,2]
[351988174,1738869055818,-500.0,0.00016712,2]
[351988175,1738869055828,-500.0,0.00016712,2]
[351988176,1738869055839,-500.0,0.00016712,2]
[351988177,1738869055848,-757.6,0.00016712,2]
[351988178,1738869055858,-500.0,0.00016712,2]
[351988179,1738869055868,-1291.91,0.00016712,2]
[351988180,1738869055878,-500.0,0.00016712,2]
[351988181,1738869055887,-505.03,0.00016712,2]
[351988182,1738869055899,-251.06676781,0.00016712,2]
[351988183,1738869055907,-682.29,0.00016712,2]
[351988184,1738869055916,-500.0,0.00016712,2]
[351988185,1738869055926,-500.0,0.00016712,2]
[351988186,1738869055935,-500.0,0.00016712,2]
[351988187,1738869055944,-500.86,0.00016712,2]
[351988188,1738869055954,-612.27,0.00016712,2]
[351988189,1738869055963,-500.0,0.00016712,2]
[351988190,1738869055973,-500.0,0.00016712,2]
[351988191,1738869055983,-666.89,0.00016712,2]
[351988192,1738869055992,-500.0,0.00016712,2]
[351988193,1738869056002,-614.83,0.00016712,2]
[351988194,1738869056012,-500.0,0.00016712,2]
[351988195,1738869056021,-500.0,0.00016712,2]
[351988196,1738869056032,-500.0,0.00016712,2]
[351988197,1738869056041,-500.0,0.00016712,2]
[351988198,1738869056051,-500.0,0.00016712,2]
[351988199,1738869056060,-500.0,0.00016712,2]
[351988200,1738869056070,-500.0,0.00016712,2]
[351988201,1738869056080,-500.0,0.00016712,2]
[351988202,1738869056092,-500.0,0.00016712,2]
[351988203,1738869056101,-500.0,0.00016712,2]
[351988204,1738869056110,-500.0,0.00016712,2]
[351988205,1738869056119,-500.0,0.00016712,2]
[351988206,1738869056128,-500.0,0.00016712,2]
[351988207,1738869056138,-658.41,0.00016712,2]
[351988208,1738869056148,-500.0,0.00016712,2]
[351988209,1738869056163,-500.0,0.00016712,2]
[351988210,1738869056179,-500.0,0.00016712,2]
[351988211,1738869056195,-500.0,0.00016712,2]
[351988212,1738869056208,-649.15,0.00016712,2]
[351988213,1738869056221,-500.0,0.00016712,2]
[351988214,1738869056234,-500.0,0.00016712,2]
[351988215,1738869056248,-500.0,0.00016712,2]
[351988216,1738869056261,-500.0,0.00016712,2]
[351988217,1738869056274,-500.0,0.00016712,2]
[351988218,1738869056287,-682.77,0.00016712,2]
[351988219,1738869056301,-500.0,0.00016712,2]
[351988220,1738869056315,-500.0,0.00016712,2]
[351988221,1738869056327,-500.0,0.00016712,2]
[351988222,1738869056340,-500.0,0.00016712,2]
[351988223,1738869056355,-809.52,0.00016712,2]
[351988224,1738869056368,-749.62,0.00016712,2]
[351988225,1738869056382,-500.0,0.00016712,2]
[351988226,1738869056395,-500.0,0.00016712,2]
[351988227,1738869056409,-500.0,0.00016712,2]
[351988228,1738869056423,-500.0,0.00016712,2]
[351988229,1738869056437,-500.0,0.00016712,2]
[351988230,1738869056451,-500.0,0.00016712,2]
[351988231,1738869056465,-500.0,0.00016712,2]
[351988232,1738869056479,-500.0,0.00016712,2]
[351988233,1738869056494,-500.0,0.00016712,2]
[351988234,1738869056510,-500.0,0.00016712,2]
[351988235,1738869056523,-500.0,0.00016712,2]
[351988236,1738869056539,-671.3,0.00016712,2]
[351988237,1738869056553,-500.0,0.00016712,2]
[351988238,1738869056565,-500.0,0.00016712,2]
[351988239,1738869056579,-500.0,0.00016712,2]
[351988240,1738869056593,-500.0,0.00016712,2]
[351988241,1738869056604,-500.0,0.00016712,2]
[351988242,1738869056616,-500.0,0.00016712,2]
[351988243,1738869056631,-500.0,0.00016712,2]
[351988244,1738869056645,-500.0,0.00016712,2]
[351988245,1738869056656,-727.24,0.00016712,2]
[351988246,1738869056666,-500.0,0.00016712,2]
[351988247,1738869056677,-500.0,0.00016712,2]
[351988248,1738869056690,-595.86,0.00016712,2]
[351988249,1738869056704,-500.0,0.00016712,2]
[351988250,1738869056716,-500.0,0.00016712,2]
[351988251,1738869056728,-500.0,0.00016712,2]
[351988252,1738869056739,-736.27,0.00016712,2]
[351988253,1738869056751,-782.84,0.00016712,2]
[351988254,1738869056762,-546.92,0.00016712,2]
[351988255,1738869056774,-500.0,0.00016712,2]
[351988256,1738869056784,-500.0,0.00016712,2]
[351988257,1738869056796,-561.78,0.00016712,2]
[351988258,1738869056807,-1313.34,0.00016712,2]
[351988259,1738869056818,-677.32,0.00016712,2]
[351988260,1738869056829,-500.0,0.00016712,2]
[351988261,1738869056843,-500.0,0.00016712,2]
[351988262,1738869056854,-951.97,0.00016712,2]
[351988263,1738869056866,-500.0,0.00016712,2]
[351988264,1738869056878,-1245.67,0.00016712,2]
[351988265,1738869056890,-500.0,0.00016712,2]
[351988266,1738869056902,-500.0,0.00016712,2]
[351988267,1738869056914,-729.72,0.00016712,2]
[351988268,1738869056926,-1576.36,0.00016712,2]
[351988269,1738869056937,-947.89,0.00016712,2]
[351988270,1738869056949,-1217.23,0.00016712,2]
[351988271,1738869056960,-500.0,0.00016712,2]
[351988272,1738869056971,-500.0,0.00016712,2]
[351988273,1738869056984,-1009.01,0.00016712,2]
[351988274,1738869056996,-500.0,0.00016712,2]
[351988275,1738869057007,-502.81,0.00016712,2]
[351988276,1738869057022,-1132.51,0.00016712,2]
[351988277,1738869057034,-592.17,0.00016712,2]
[351988278,1738869057046,-698.36,0.00016712,2]
[351988279,1738869057058,-714.09,0.00016712,2]
[351988280,1738869057070,-788.72,0.00016712,2]
[351988281,1738869057082,-500.0,0.00016712,2]
[351988282,1738869057095,-1183.22,0.00016712,2]
[351988283,1738869057107,-500.0,0.00016712,2]
[351988284,1738869057118,-1152.38,0.00016712,2]
[351988285,1738869057130,-797.6,0.00016712,2]
[351988286,1738869057142,-588.41,0.00016712,2]
[351988287,1738869057155,-555.42,0.00016712,2]
[351988288,1738869057167,-2551.39,0.00016712,2]
[351988289,1738869057179,-500.0,0.00016712,2]
[351988290,1738869057192,-571.31,0.00016712,2]
[351988291,1738869057205,-759.91,0.00016712,2]
[351988292,1738869057217,-3041.0,0.00016712,2]
[351988293,1738869057229,-500.0,0.00016712,2]
[351988294,1738869057242,-500.0,0.00016712,2]
[351988295,1738869057255,-799.86,0.00016712,2]
[351988296,1738869057267,-609.0,0.00016712,2]
[351988297,1738869057279,-2070.64,0.00016712,2]
[351988298,1738869057292,-500.0,0.00016712,2]
[351988299,1738869057305,-500.0,0.00016712,2]
[351988300,1738869057318,-500.0,0.00016712,2]
[351988301,1738869057330,-500.0,0.00016712,2]
[351988302,1738869057347,-522.23,0.00016712,2]
[351988303,1738869057361,-928.38,0.00016712,2]
[351988304,1738869057375,-766.76,0.00016712,2]
[351988305,1738869057390,-500.0,0.00016712,2]
[351988306,1738869057403,-716.2,0.00016712,2]
[351988307,1738869057417,-883.93,0.00016712,2]
[351988308,1738869057431,-481.37983645,0.00016712,2]
[351988309,1738869057444,-552.7,0.00016712,2]
[351988310,1738869057459,-1508.2,0.00016712,2]
[351988311,1738869057472,-516.18,0.00016712,2]
[351988312,1738869057486,-500.0,0.00016712,2]
[351988313,1738869057502,-1447.02,0.00016712,2]
[351988314,1738869057515,-500.0,0.00016712,2]
[351988315,1738869057528,-500.0,0.00016712,2]
[351988316,1738869057541,-500.0,0.00016712,2]
[351988317,1738869057553,-706.53,0.00016712,2]
[351988318,1738869057566,-500.0,0.00016712,2]
[351988319,1738869057786,-978.65,0.00016712,2]
[351988320,1738869057798,-1153.65,0.00016712,2]
[351988321,1738869057810,-500.0,0.00016712,2]
[351988322,1738869057822,-1914.73,0.00016712,2]
[351988323,1738869057834,-947.99,0.00016712,2]
[351988324,1738869057850,-579.21,0.00016712,2]
[351988325,1738869057862,-628.67,0.00016712,2]
[351988326,1738869057874,-500.0,0.00016712,2]
[351988327,1738869057886,-683.61,0.00016712,2]
[351988328,1738869057898,-1019.47,0.00016712,2]
[351988329,1738869057910,-1070.13,0.00016712,2]
[351988330,1738869057922,-500.0,0.00016712,2]
[351988331,1738869057933,-500.0,0.00016712,2]
[351988332,1738869057945,-1472.07,0.00016712,2]
[351988333,1738869057957,-1119.85,0.00016712,2]
[351988334,1738869057969,-829.24,0.00016712,2]
[351988335,1738869057980,-1237.8,0.00016712,2]
[351988336,1738869057991,-500.0,0.00016712,2]
[351988337,1738869058002,-768.55,0.00016712,2]
[351988338,1738869058014,-500.0,0.00016712,2]
[351988339,1738869058025,-823.29,0.00016712,2]
[351988340,1738869058036,-3432.47,0.00016712,2]
[351988341,1738869058047,-500.0,0.00016712,2]
[351988342,1738869058060,-500.0,0.00016712,2]
[351988343,1738869058071,-1124.75,0.00016712,2]
[351988344,1738869058082,-1001.46,0.00016712,2]
[351988345,1738869058096,-500.0,0.00016712,2]
[351988346,1738869058108,-500.0,0.00016712,2]
[351988347,1738869058119,-592.42,0.00016712,2]
[351988348,1738869058130,-1057.54,0.00016712,2]
[351988349,1738869058141,-500.0,0.00016712,2]
[351988350,1738869058152,-781.47,0.00016712,2]
[351988351,1738869058163,-500.0,0.00016712,2]
[351988352,1738869058174,-500.0,0.00016712,2]
[351988353,1738869058186,-1590.71,0.00016712,2]
[351988354,1738869058197,-571.38,0.00016712,2]
[351988355,1738869058208,-500.0,0.00016712,2]
[351988356,1738869058219,-547.46,0.00016712,2]
[351988357,1738869058230,-611.88,0.00016712,2]
[351988358,1738869058241,-500.0,0.00016712,2]
[351988359,1738869058252,-500.0,0.00016712,2]
[351988360,1738869058263,-500.0,0.00016712,2]
[351988361,1738869058275,-917.36,0.00016712,2]
[351988362,1738869058285,-2012.37,0.00016712,2]
[351988363,1738869058294,-581.15,0.00016712,2]
[351988364,1738869058304,-500.0,0.00016712,2]
[351988365,1738869058313,-1680.18,0.00016712,2]
[351988366,1738869058323,-1207.36,0.00016712,2]
[351988367,1738869058332,-581.67,0.00016712,2]
[351988368,1738869058345,-1132.12,0.00016712,2]
[351988369,1738869058354,-500.0,0.00016712,2]
[351988370,1738869058363,-500.0,0.00016712,2]
[351988371,1738869058373,-1498.04,0.00016712,2]
[351988372,1738869058383,-500.0,0.00016712,2]
[351988373,1738869058392,-500.0,0.00016712,2]
[351988374,1738869058402,-500.0,0.00016712,2]
[351988375,1738869058411,-1513.16,0.00016712,2]
[351988376,1738869058421,-925.3,0.00016712,2]
[351988377,1738869058430,-500.0,0.00016712,2]
[351988378,1738869058440,-2321.43,0.00016712,2]
[351988379,1738869058449,-530.46,0.00016712,2]
[351988380,1738869058460,-751.5,0.00016712,2]
[351988381,1738869058469,-819.37,0.00016712,2]
[351988382,1738869058479,-1131.41,0.00016712,2]
[351988383,1738869058489,-516.32,0.00016712,2]
[351988384,1738869058499,-500.0,0.00016712,2]
[351988385,1738869058511,-500.0,0.00016712,2]
[351988386,1738869058521,-500.0,0.00016712,2]
[351988387,1738869058531,-500.0,0.00016712,2]
[351988388,1738869058540,-1000.0,0.00016712,2]
[351988389,1738869058856,-887.03,0.00016712,2]
[351988390,1738869058876,-500.0,0.00016712,2]
[351988391,1738869058887,-1716.92,0.00016712,2]
[351988392,1738869058897,-500.0,0.00016712,2]
[351988393,1738869058907,-750.35,0.00016712,2]
[351988394,1738869058916,-500.0,0.00016712,2]
[351988395,1738869058926,-500.0,0.00016712,2]
[351988396,1738869058935,-985.16,0.00016712,2]
[351988397,1738869058944,-1146.94,0.00016712,2]
[351988398,1738869058954,-500.0,0.00016712,2]
[351988399,1738869058964,-500.0,0.00016712,2]
[351988400,1738869058973,-292.07327745,0.00016712,2]
[351988401,1738869058983,-500.0,0.00016712,2]
[351988402,1738869058992,-1123.01,0.00016712,2]
[351988403,1738869059002,-500.0,0.00016712,2]
[351988404,1738869059011,-1926.78,0.00016712,2]
[351988405,1738869059020,-500.0,0.00016712,2]
[351988406,1738869059029,-849.89,0.00016712,2]
[351988407,1738869059039,-774.75,0.00016712,2]
[351988408,1738869059049,-910.06,0.00016712,2]
[351988409,1738869059058,-750.33,0.00016712,2]
[351988410,1738869059068,-608.94,0.00016712,2]
[351988411,1738869059077,-1462.54,0.00016712,2]
[351988412,1738869059087,-543.86,0.00016712,2]
[351988413,1738869059098,-561.62,0.00016712,2]
[351988414,1738869059107,-527.28,0.00016712,2]
[351988415,1738869059116,-500.0,0.00016712,2]
[351988416,1738869059126,-500.0,0.00016712,2]
[351988417,1738869059135,-726.86,0.00016712,2]
[351988418,1738869059144,-500.0,0.00016712,2]
[351988419,1738869059153,-871.24,0.00016712,2]
[351988420,1738869059162,-839.79,0.00016712,2]
[351988421,1738869059172,-639.6,0.00016712,2]
[351988422,1738869059181,-679.77,0.00016712,2]
[351988423,1738869059190,-500.0,0.00016712,2]
[351988424,1738869059199,-774.5,0.00016712,2]
[351988425,1738869059208,-500.0,0.00016712,2]
[351988426,1738869059217,-500.0,0.00016712,2]
[351988427,1738869059227,-150.0,0.0001684,2]
[351988428,1738869059237,-527.602,0.00016846,2]
[351988429,1738869059247,-1927.90058555,0.00016848,5]
[351988430,1738869059256,-500.0,0.00016848,2]
[351988431,1738869059265,-500.0,0.00016848,2]
[351988432,1738869059274,-500.0,0.00016848,2]
[351988433,1738869059283,-531.59148337,0.00016848,2]
[351988434,1738869059293,-887.55,0.00016848,2]
[351988435,1738869059302,-1005.17,0.00016848,2]
[351988436,1738869059311,-170.418657,0.00016849,2]
[351988437,1738869059321,-500.0,0.00016849,2]
[351988438,1738869059330,-200.145142,0.00016849,2]
[351988439,1738869059340,-500.0,0.00016849,2]
[351988440,1738869059351,-500.01542799,0.00016849,2]
[351988441,1738869059361,-500.0,0.00016849,2]
[351988442,1738869059371,-500.0,0.00016849,2]
[351988443,1738869059380,-500.0,0.00016849,2]
[351988444,1738869059390,-500.0,0.00016849,2]
[351988445,1738869059400,-556.89285664,0.00016849,2]
[351988446,1738869059410,-658.15,0.00016849,2]
[351988447,1738869059421,-184.05034432,0.00016849,2]
[351988448,1738869059430,-252.25,0.00016849,2]
[351988449,1738869059441,-500.0,0.00016849,2]
[351988450,1738869059452,-500.0,0.00016849,2]
[351988451,1738869059462,-803.61,0.00016849,2]
[351988452,1738869059473,-500.0,0.00016849,2]
[351988453,1738869059483,-544.03,0.00016849,2]
[351988454,1738869059493,-500.0,0.00016849,2]
[351988455,1738869059505,-554.58,0.00016849,2]
[351988456,1738869059514,-598.35,0.00016849,2]
[351988457,1738869059523,-500.0,0.00016849,2]
[351988458,1738869059534,-500.0,0.00016849,2]
[351988459,1738869059543,-546.29,0.00016849,2]
[351988460,1738869059553,-500.0,0.00016849,2]
[351988461,1738869059562,-500.0,0.00016849,2]
[351988462,1738869059572,-500.0,0.00016849,2]
[351988463,1738869059582,-500.0,0.00016849,2]
[351988464,1738869059592,-500.0,0.00016849,2]
[351988465,1738869059602,-705.77,0.00016849,2]
[351988466,1738869059612,-500.0,0.00016849,2]
[351988467,1738869059621,-500.0,0.00016849,2]
[351988468,1738869059631,-500.0,0.00016849,2]
[351988469,1738869059640,-500.0,0.00016849,2]
[351988470,1738869059649,-500.0,0.00016849,2]
[351988471,1738869059659,-572.78,0.00016849,2]
[351988472,1738869059668,-500.0,0.00016849,2]
[351988473,1738869059678,-500.0,0.00016849,2]
[351988474,1738869059687,-500.0,0.00016849,2]
[351988475,1738869059696,-500.0,0.00016849,2]
[351988476,1738869059705,-500.0,0.00016849,2]
[351988477,1738869059715,-637.2334379,0.00016849,2]
[351988478,1738869059724,-500.0,0.00016849,2]
[351988479,1738869059734,-500.0,0.00016849,2]
[351988480,1738869059743,-625.43,0.00016849,2]
[351988481,1738869059752,-500.0,0.00016849,2]
[351988482,1738869059762,-500.0,0.00016849,2]
[351988483,1738869059772,-500.0,0.00016849,2]
[351988484,1738869059782,-500.0,0.00016849,2]
[351988485,1738869059791,-500.0,0.00016849,2]
[351988486,1738869059800,-595.98,0.00016849,2]
[351988487,1738869059810,-500.0,0.00016849,2]